{"text_format":"1","workbook":"xlsx","n_sheets":1,"sheets":["Données"],"not_rendered":{"charts":0,"images":0,"macros":1,"external_links":0,"defined_names":1,"comments":1,"pivot_tables":0},"unopened":[],"bounds":{"document_bytes":16777216,"sheet_cells":100000,"rows_first":2000,"rows_last":500,"rows_between":2000,"halvings":0,"cell_chars":16384,"cell_head_chars":4096},"cells_cut":0,"cells_raw":0,"read":"whole","date_system":"1900"}

{"sheet":"Données","index":0,"n_rows":25,"n_cols":15,"rows_kept":25,"cut":false,"hidden":false,"merged":[[0,8,0,10],[5,7,13,7]]}
["Doc","Niveau revision","amendement",null,"Doc","Niveau revision","amendement",null,"Résultat"]
["NFIAN112",null,"basic",null,"NFIAN112","01","AB",null,"NFIAN112","","Basic",null,{"$f":"I2=A2","v":true},{"$f":"J2=B2","v":true},true]
["NFIAN112","01","AB",null,"NFIAN112","02","AB",null,"NFIAN112","01","AB",null,{"$f":"I3=A3","v":true},{"$f":"J3=B3","v":true},{"$f":"K3=C3","v":true}]
["NFIAN112",null,"basic",null,"NFIAN113",null,null,null,"NFIAN112","","Basic",null,true,true,true]
["NFIAN112","02","AB",null,"NFIAN118",null,null,null,"NFIAN112","02","AB",null,true,true,true]
["NFIAN113",null,"Basic",null,"NFJ104",null,null,"1) sélectionner la zone des données (verte ci-contre)\n\n2) lancer la macro en cliquant sur le bouton >>Cameo>>\n\n3) le résultat apparaît en I2:Kn","NFIAN113","","Basic",null,true,true,true]
["NFIAN118",null,"Basic",null,"NFJ111","01","AB",null,"NFIAN118","","Basic",null,true,true,true]
["NFJ104",null,"Basic",null,"NFJ111","01","AC",null,"NFJ104","","Basic",null,true,true,true]
["NFJ111",null,"basic",null,"NFJAN105",null,null,null,"NFJ111","","Basic",null,true,true,true]
["NFJ111","01","AB",null,"NFJAN106",null,null,null,"NFJ111","01","AB",null,true,true,true]
["NFJ111","01","AC",null,"NFJAN107","01","AB",null,"NFJ111","01","AC",null,true,true,true]
["NFJAN105",null,"Basic",null,"NFJAN107","01","AC",null,"NFJAN105","","Basic",null,true,true,true]
["NFJAN106",null,"Basic",null,"NFJAN107","01","AD",null,"NFJAN106","","Basic",null,true,true,true]
["NFJAN107",null,"basic",null,"NFJAN107","01","AE",null,"NFJAN107","","Basic",null,true,true,true]
["NFJAN107","01","AB",null,"NFJAN107","01","AF",null,"NFJAN107","01","AB",null,true,true,true]
["NFJAN107","01","AC",null,"NFJAN3",null,null,null,"NFJAN107","01","AC",null,true,true,true]
["NFJAN107","01","AD",null,"NFJAN4",null,null,null,"NFJAN107","01","AD",null,true,true,true]
["NFJAN107","01","AE",null,"NFLAN101","01","AB",null,"NFJAN107","01","AE",null,true,true,true]
["NFJAN107","01","AF",null,"NFLAN101","01","AC",null,"NFJAN107","01","AF",null,true,true,true]
["NFJAN3",null,"Basic",null,"NFLAN119",null,null,null,"NFJAN3","","Basic",null,true,true,true]
["NFJAN4",null,"Basic",null,null,null,null,null,"NFJAN4","","Basic",null,true,true,true]
["NFLAN101",null,"basic",null,null,null,null,null,"NFLAN101","","Basic",null,true,true,true]
["NFLAN101","01","AB",null,null,null,null,null,"NFLAN101","01","AB",null,true,true,true]
["NFLAN101","01","AC",null,null,null,null,null,"NFLAN101","01","AC",null,true,true,true]
["NFLAN119",null,"Basic",null,null,null,null,null,"NFLAN119","","Basic",null,true,true,true]